bitfinex/quotes_ETHUSD_20250507
["timestamp","ask_amount","ask_price","bid_price","bid_amount"]
[1746636273735,5.52899006,1808.7,1808.6,3.7958]
[1746636275414,5.52822384,1808.9,1808.7,6.32169]
[1746636275415,5.52839554,1808.9,1808.7,6.32169]
[1746636275610,5.52839554,1808.9,1808.8,0.632169]
[1746636275851,5.63174113,1808.9,1808.8,0.632169]
[1746636277328,0.10334559,1808.9,1808.8,1.465369]
[1746636277503,0.10334559,1808.9,1808.8,10.465369]
[1746636277706,0.10334559,1808.9,1808.8,54.443927]
[1746636278024,5.52778423,1809.1,1808.8,44.874826]
[1746636278225,11.05563534,1809.1,1808.9,10.4874826]
[1746636278422,5.52778423,1809.1,1808.9,6.0]
[1746636278708,5.52778423,1809.1,1808.9,6.05527511]
[1746636279437,1.3811992,1809.4,1809.1,3.0]
[1746636279605,5.52730488,1809.2,1809.1,3.0]
[1746636282106,5.52713149,1809.3,1809.1,3.0]
[1746636282358,5.52713149,1809.3,1809.2,1.0962]
[1746636282517,5.52713149,1809.3,1809.2,10.0962]
[1746636285281,5.52713149,1809.3,1809.2,13.15045334]
[1746636286358,1.3811992,1809.4,1809.2,13.15045334]
[1746636286552,0.10898075,1809.3,1809.2,13.15045334]
[1746636286754,6.90804519,1809.4,1809.2,13.15045334]
[1746636286996,0.10898075,1809.3,1809.2,13.15045334]
[1746636287285,5.52699939,1809.3,1809.2,13.15045334]
[1746636287490,0.10898075,1809.3,1809.2,13.15045334]
[1746636287870,5.52699939,1809.3,1809.2,13.15045334]
[1746636288094,5.63598014,1809.3,1809.2,13.15045334]
[1746636289599,5.63598014,1809.3,1809.2,12.35425334]
[1746636289752,5.63598014,1809.3,1809.2,12.05425334]
[1746636289947,6.46118014,1809.3,1809.2,6.0]
[1746636290691,5.52761041,1809.1,1809.0,6.0]
[1746636291097,5.6360042,1809.1,1809.0,6.0]
[1746636292115,0.10839379,1809.1,1809.0,6.0]
[1746636292270,0.10839379,1809.1,1809.0,7.20542533]
[1746636292596,5.63720845,1809.1,1809.0,7.20542533]
[1746636293209,5.63720845,1809.1,1809.0,10.20542533]
[1746636293410,0.10959804,1809.1,1809.0,10.20542533]
[1746636293702,5.52761041,1809.1,1809.0,10.20542533]
[1746636293899,5.63720845,1809.1,1809.0,10.20542533]
[1746636294264,0.10959804,1809.1,1809.0,10.20542533]
[1746636294596,5.52749383,1809.2,1809.0,10.20542533]
[1746636294791,0.10959804,1809.1,1809.0,10.20542533]
[1746636295097,5.52749383,1809.2,1809.0,10.20542533]
[1746636295263,0.10959804,1809.1,1809.0,10.20542533]
[1746636295665,5.52761041,1809.1,1809.0,10.20542533]
[1746636295965,5.52761041,1809.1,1809.0,13.64401211]
[1746636297103,1.3811992,1809.4,1809.1,3.7501]
[1746636297290,1.3811992,1809.4,1809.3,6.43858678]
[1746636298766,6.90789313,1809.4,1809.3,6.43858678]
[1746636299680,6.90789313,1809.4,1809.3,12.43858678]
[1746636300969,1.3811992,1809.4,1809.3,13.23758678]
[1746636301267,6.90789313,1809.4,1809.3,13.23758678]
[1746636301463,6.90789313,1809.4,1809.3,13.76234546]
[1746636301702,6.90789313,1809.4,1809.3,12.43858678]
[1746636305724,6.90789313,1809.4,1809.3,6.43858678]
[1746636311140,5.52699939,1809.3,1809.2,9.0]
[1746636311505,5.52699939,1809.3,1809.2,6.0]
[1746636311744,5.52699939,1809.3,1808.9,0.7994]
[1746636311745,6.29171597,1809.0,1808.9,6.0]
[1746636312113,6.29171597,1809.0,1808.9,9.43858678]
[1746636312444,6.29171597,1809.0,1808.9,6.0]
[1746636312807,6.29171597,1809.0,1808.9,9.43858678]
[1746636313206,5.52707818,1809.3,1809.0,8.52788624]
[1746636313428,5.52731301,1809.2,1809.0,3.0]
[1746636313613,5.52761041,1809.1,1809.0,3.0]
[1746636313819,11.05489122,1809.2,1809.0,3.0]
[1746636314643,5.52731301,1809.2,1809.1,9.43858678]
[1746636316951,6.35521301,1809.2,1809.1,9.43858678]
[1746636317513,6.35521301,1809.2,1809.1,6.0]
[1746636319867,6.35521301,1809.2,1809.1,9.43858678]
[1746636320045,5.52731301,1809.2,1809.1,9.43858678]
[1746636324230,5.52731301,1809.2,1809.1,10.23178678]
[1746636324429,5.52731301,1809.2,1809.1,9.43858678]
[1746636326663,5.52731301,1809.2,1809.1,6.43858678]
[1746636329267,6.29841301,1809.2,1809.1,6.43858678]
[1746636329834,6.29841301,1809.2,1809.1,3.0]
[1746636331135,5.52731301,1809.2,1809.1,3.0]
[1746636331454,5.81720655,1809.2,1809.1,3.0]
[1746636334370,0.28989354,1809.2,1809.1,3.0]
[1746636334774,5.81719842,1809.2,1809.1,3.0]
[1746636338250,0.28989354,1809.2,1809.1,4.45395868]
[1746636338461,6.90799525,1809.4,1809.2,3.0]
[1746636338678,6.90799525,1809.4,1809.3,3.43858678]
[1746636342988,6.90789313,1809.4,1809.3,3.43858678]
[1746636344496,1.3811992,1809.4,1809.3,3.43858678]
[1746636344703,1.3811992,1809.4,1809.3,4.25648678]
[1746636344901,1.3811992,1809.4,1809.3,4.95357563]
[1746636345203,1.3811992,1809.4,1809.3,7.95357563]
[1746636346504,1.67125574,1809.4,1809.3,7.95357563]
[1746636347574,1.67125574,1809.4,1809.3,13.95357563]
[1746636348804,7.19794967,1809.4,1809.3,13.95357563]
[1746636348972,7.19794967,1809.4,1809.3,13.25648678]
[1746636351103,1.67125574,1809.4,1809.3,13.25648678]
[1746636351606,7.19794967,1809.4,1809.3,13.25648678]
[1746636351791,7.19794967,1809.4,1809.3,12.43858678]
[1746636352271,8.02414967,1809.4,1809.3,12.43858678]
[1746636353545,8.02414967,1809.4,1809.3,6.0]
[1746636353816,5.52699939,1809.3,1809.2,6.43858678]
[1746636354106,5.81780032,1809.3,1809.2,6.43858678]
[1746636360736,5.81780032,1809.3,1809.2,3.43858678]
[1746636367309,5.81780032,1809.3,1809.2,7.08244546]
[1746636367310,0.29080093,1809.3,1809.2,7.08244546]
[1746636367612,6.90789313,1809.4,1809.3,3.0]
[1746636367818,12.70017535,1809.4,1809.2,4.08244546]
[1746636368013,7.17321748,1809.4,1809.2,4.08244546]
[1746636368606,7.17321748,1809.4,1809.3,9.0]
[1746636371340,1.64652355,1809.4,1809.3,11.03135868]
[1746636375672,7.17321748,1809.4,1809.3,11.03135868]
[1746636376264,1.64652355,1809.4,1809.3,11.03135868]
[1746636377939,6.19247459,1809.7,1809.5,3.0]
[1746636378259,6.19244442,1809.7,1809.6,4.26538678]
[1746636378969,0.66666667,1809.7,1809.6,4.26538678]
[1746636379176,0.66666667,1809.7,1809.6,10.26538678]
[1746636379764,0.66666667,1809.7,1809.6,15.84672636]
[1746636379941,0.66666667,1809.7,1809.6,31.90491289]
[1746636380132,5.52474603,1810.1,1809.6,38.75649138]
[1746636380340,5.52455665,1810.1,1810.0,3.43858678]
[1746636380547,5.52455665,1810.1,1810.0,9.43858678]
[1746636383780,5.52455665,1810.1,1810.0,3.43858678]
[1746636385525,5.71719131,1810.1,1810.0,3.43858678]
[1746636386587,5.71719131,1810.1,1810.0,9.43858678]
[1746636387311,5.71719131,1810.1,1810.0,10.19668678]
[1746636387475,5.71719131,1810.1,1810.0,14.22187996]
[1746636387680,0.19263466,1810.1,1810.0,14.22187996]
[1746636387879,5.52407016,1810.3,1810.0,14.22187996]
[1746636388111,5.71756681,1810.2,1810.0,10.78329318]
[1746636388269,5.52455665,1810.1,1810.0,10.78329318]
[1746636388475,5.7175489,1810.1,1810.0,9.0]
[1746636389172,5.7175489,1810.1,1810.0,12.43858678]
[1746636389707,0.19299225,1810.1,1810.0,12.43858678]
[1746636389919,0.19299225,1810.1,1810.0,17.96344865]
[1746636390206,5.52398607,1810.3,1810.0,18.77594865]
[1746636390504,5.52398607,1810.3,1810.2,6.43858678]
[1746636390712,5.5238467,1810.4,1810.2,6.43858678]
[1746636390892,11.29452406,1810.5,1810.3,0.7622]
[1746636391095,5.52290799,1810.7,1810.4,12.43858678]
[1746636391297,5.52272601,1810.7,1810.6,6.43858678]
[1746636391515,5.72112045,1810.7,1810.6,6.43858678]
[1746636392094,5.72112045,1810.7,1810.6,6.84631262]
[1746636392291,0.19839444,1810.7,1810.6,6.84631262]
[1746636392505,0.19839444,1810.7,1810.6,7.63241262]
[1746636392721,0.19839444,1810.7,1810.6,8.40117703]
[1746636393077,5.5226054,1810.8,1810.6,8.40117703]
[1746636393287,0.19919867,1810.7,1810.6,13.92420806]
[1746636393622,0.19960073,1810.7,1810.6,8.40117703]
[1746636393828,5.52200619,1811.0,1810.6,13.92420806]
[1746636394010,5.72247654,1810.9,1810.7,1.39242081]
[1746636394329,5.52242102,1810.8,1810.7,1.39242081]
[1746636394623,5.72219831,1810.8,1810.7,1.39242081]
[1746636394923,5.72219831,1810.8,1810.6,7.63241262]
[1746636395792,5.52272601,1810.7,1810.6,7.63241262]
[1746636396014,5.72227408,1810.7,1810.6,13.63241262]
[1746636396616,0.19954807,1810.7,1810.6,13.63241262]
[1746636397220,5.52164826,1811.1,1810.6,60.8134574]
[1746636397522,5.69060629,1811.0,1810.9,3.0]
[1746636398553,5.69060629,1811.0,1810.9,6.43858678]
[1746636398762,0.16852165,1811.0,1810.9,6.43858678]
[1746636398981,0.16852165,1811.0,1810.9,7.21318678]
[1746636399155,0.16852165,1811.0,1810.9,8.28388628]
[1746636399554,5.93186633,1811.2,1810.9,8.3391002]
[1746636399757,0.16955912,1811.0,1810.9,10.42262949]
[1746636399976,0.4104992,1811.2,1811.1,3.0]
[1746636400160,5.51972898,1811.7,1811.4,0.8206]
[1746636400335,5.51967765,1811.7,1811.6,6.43858678]
[1746636401680,5.51950025,1811.8,1811.6,6.43858678]
[1746636401841,5.51967765,1811.7,1811.6,6.43858678]
[1746636402044,5.51955841,1811.8,1811.6,6.43858678]
[1746636402236,5.51906838,1811.9,1811.6,3.43858678]
[1746636402436,5.51906838,1811.9,1811.6,7.08796507]
[1746636402746,5.51906838,1811.9,1811.7,0.7739]
[1746636402952,5.51942302,1811.8,1811.7,0.7739]
[1746636403153,5.51927266,1811.9,1811.7,0.7739]
[1746636403331,5.51906838,1811.9,1811.8,6.43858678]
[1746636403743,5.51893153,1812.0,1811.8,6.43858678]
[1746636404173,5.51906838,1811.9,1811.8,6.43858678]
[1746636404582,5.51906838,1811.9,1811.8,6.8614909]
[1746636404879,5.68324347,1811.9,1811.8,6.8614909]
[1746636405078,0.16417509,1811.9,1811.8,6.8614909]
[1746636405282,5.68324347,1811.9,1811.8,6.8614909]
[1746636408076,5.68324347,1811.9,1811.8,0.42290412]
[1746636408247,5.51937299,1811.8,1811.7,6.43858678]
[1746636408446,5.67160193,1811.8,1811.7,6.43858678]
[1746636410064,5.67160193,1811.8,1811.7,3.43858678]
[1746636410670,5.51967765,1811.7,1811.5,3.0]
[1746636410851,5.51980245,1811.7,1811.6,3.43858678]
[1746636411051,5.67259267,1811.7,1811.6,3.43858678]
[1746636411657,5.67246787,1811.7,1811.6,3.43858678]
[1746636412160,5.51843989,1812.2,1811.9,3.0]
[1746636412161,0.8292,1812.2,1811.9,3.0]
[1746636412376,5.51841455,1812.2,1812.1,3.43858678]
[1746636412550,5.51841455,1812.2,1812.1,3.84629319]
[1746636415049,5.51841455,1812.2,1812.1,0.40770641]
[1746636415251,5.51845924,1812.1,1812.0,3.43858678]
[1746636415453,5.51924308,1811.9,1811.7,3.8177]
[1746636415766,5.51890935,1812.0,1811.7,3.8177]
[1746636415767,5.51889949,1812.0,1811.9,3.0]
[1746636415961,5.51920342,1811.9,1811.7,4.22592637]
[1746636416167,5.51937299,1811.8,1811.7,3.40822637]
[1746636416367,5.51937299,1811.8,1811.7,9.40822637]
[1746636416685,5.51896623,1812.0,1811.8,0.7741]
[1746636416868,5.51857093,1812.1,1811.9,3.43858678]
[1746636417061,5.51857093,1812.1,1812.0,3.43858678]
[1746636419662,5.65024937,1812.1,1812.0,3.43858678]
[1746636420590,6.40124937,1812.1,1812.0,3.43858678]
[1746636421294,6.40124937,1812.1,1811.9,6.0]
[1746636421295,5.51876379,1812.0,1811.9,6.0]
[1746636421467,5.65121483,1812.0,1811.9,6.0]
[1746636422992,6.44591483,1812.0,1811.9,6.0]
[1746636423177,5.51937299,1811.8,1811.7,0.40822637]
[1746636423370,5.51998233,1811.6,1811.5,3.43858678]
[1746636423572,5.51998233,1811.6,1811.5,3.84771836]
[1746636423756,5.64993064,1811.6,1811.5,3.84771836]
[1746636424558,0.12994831,1811.6,1811.5,3.84771836]
[1746636424887,6.5491,1811.9,1811.5,24.6140892]
[1746636424888,5.51952526,1811.8,1811.5,24.6140892]
[1746636425060,11.27724722,1811.9,1811.7,3.43858678]
[1746636425260,5.51937299,1811.8,1811.7,3.43858678]
[1746636425598,5.51937299,1811.8,1811.7,6.43858678]
[1746636426169,5.51937299,1811.8,1811.7,3.43858678]
[1746636427794,5.51894496,1812.0,1811.8,3.0]
[1746636427972,11.0379402,1812.0,1811.8,3.0]
[1746636428290,11.03799148,1812.0,1811.8,3.0]
[1746636428495,11.03795696,1812.0,1811.8,3.0]
[1746636428693,11.03795696,1812.0,1811.9,9.0]
[1746636428694,5.51894496,1812.0,1811.9,9.0]
[1746636430994,6.27104496,1812.0,1811.9,3.0]
[1746636432178,5.51858925,1812.1,1811.9,3.0]
[1746636432586,5.51876379,1812.0,1811.9,3.0]
[1746636434392,5.51858925,1812.1,1812.0,3.0]
[1746636435932,5.51832568,1812.2,1812.0,3.0]
[1746636436234,0.7837,1812.4,1812.0,3.0]
[1746636436235,5.51774999,1812.4,1812.2,3.7697]
[1746636436387,5.51738615,1812.5,1812.2,9.80281445]
[1746636436584,0.13010726,1812.3,1812.2,9.80281445]
[1746636436784,5.51785024,1812.3,1812.2,9.0]
[1746636437014,5.6479575,1812.3,1812.2,9.0]
[1746636437729,0.13010726,1812.3,1812.2,9.0]
[1746636437885,5.51764908,1812.4,1812.2,9.0]
[1746636438084,5.51764908,1812.4,1812.3,9.0]
[1746636441190,6.33984908,1812.4,1812.3,9.0]
[1746636442098,5.51754579,1812.4,1812.3,9.0]
[1746636442902,5.51711026,1812.6,1812.3,15.93311445]
[1746636443103,5.51711026,1812.6,1812.4,3.7987]
[1746636443104,5.51696532,1812.6,1812.4,3.7987]
[1746636443925,6.29606532,1812.6,1812.5,6.0]
[1746636444322,5.51696532,1812.6,1812.5,6.40942444]
[1746636445325,12.06666519,1812.7,1812.6,3.0]
[1746636447192,12.06666519,1812.7,1812.5,3.40942444]
[1746636447193,6.5499,1812.7,1812.5,3.40942444]
[1746636447394,5.755,1812.7,1812.5,4.42896688]
[1746636447703,6.18318012,1812.8,1812.6,3.42548982]
[1746636448108,0.66666667,1812.8,1812.7,7.21148982]
[1746636449515,0.66666667,1812.8,1812.6,6.42548982]
[1746636449717,0.66666667,1812.8,1812.6,3.0]
[1746636449909,6.18303982,1812.8,1812.6,3.0]
[1746636450524,5.51693699,1812.6,1812.5,0.40942444]
[1746636450832,5.51693699,1812.6,1812.5,3.0]
[1746636451527,5.65320359,1812.6,1812.5,3.0]
[1746636451832,0.1362666,1812.6,1812.5,3.0]
[1746636452198,5.51670482,1812.7,1812.5,3.0]
[1746636452398,0.13631927,1812.6,1812.5,4.319]
[1746636452622,0.13631927,1812.6,1812.5,21.3353]
[1746636452827,0.66666667,1812.8,1812.5,32.88094644]
[1746636453042,0.13647729,1812.6,1812.5,11.58926028]
[1746636453207,11.69958956,1812.8,1812.5,17.58926028]
[1746636453413,0.13791437,1812.6,1812.5,10.24184159]
[1746636453619,0.66666667,1812.8,1812.5,21.78750165]
[1746636454139,0.13730038,1812.7,1812.6,8.51675386]
[1746636454303,0.13730038,1812.7,1812.6,3.0]
[1746636456904,0.13730038,1812.7,1812.6,8.51693699]
[1746636457124,0.13730038,1812.7,1812.6,11.24735392]
[1746636457444,0.13730038,1812.7,1812.6,56.00661192]
[1746636457617,0.13730038,1812.7,1812.6,48.44540292]
[1746636457820,0.66666667,1812.8,1812.7,9.29733264]
[1746636458027,0.66666667,1812.8,1812.7,9.35249148]
[1746636458328,0.79323115,1812.8,1812.7,27.30247602]
[1746636458645,6.27010141,1813.7,1813.3,3.0]
[1746636458842,5.5139109,1813.6,1813.5,3.0]
[1746636459051,5.6323368,1813.6,1813.5,3.0]
[1746636459348,0.1184259,1813.6,1813.5,3.0]
[1746636459545,6.27010141,1813.7,1813.5,9.0]
[1746636459731,0.11913705,1813.6,1813.5,9.9]
[1746636459910,5.51389501,1813.6,1813.5,9.9]
[1746636460112,5.63303206,1813.6,1813.5,9.9]
[1746636461150,0.11913705,1813.6,1813.5,9.9]
[1746636461311,0.8056,1814.2,1813.6,0.8176]
[1746636461511,5.51298307,1813.9,1813.8,3.0]
[1746636461713,0.11924352,1813.9,1813.8,3.0]
[1746636461916,0.11924352,1813.9,1813.7,11.51358748]
[1746636462208,5.51252869,1814.1,1813.8,3.0]
[1746636462437,5.51256834,1814.1,1813.8,4.45135875]
[1746636462638,5.51286174,1814.0,1813.8,4.45135875]
[1746636462812,5.51223818,1814.2,1813.9,0.7615]
[1746636463514,5.51223818,1814.2,1813.8,9.78991869]
[1746636463515,5.51223983,1814.2,1813.8,9.78991869]
[1746636463866,5.51251857,1814.1,1813.8,9.78991869]
[1746636464057,11.26489773,1814.3,1814.0,3.0]
[1746636464227,5.753,1814.3,1814.0,3.40392669]
[1746636464423,5.51237528,1814.1,1814.0,3.40392669]
[1746636464722,5.51237528,1814.1,1814.0,9.40392669]
[1746636465226,6.30907528,1814.1,1814.0,9.40392669]
[1746636466019,5.51237528,1814.1,1814.0,9.40392669]
[1746636466220,6.44094517,1814.1,1814.0,9.40392669]
[1746636469161,0.13186989,1814.1,1814.0,9.40392669]
[1746636469320,5.51237528,1814.1,1814.0,9.40392669]
[1746636469520,5.6447716,1814.1,1814.0,9.40392669]
[1746636473684,5.6447716,1814.1,1814.0,0.40392669]
[1746636474056,5.51273287,1814.0,1813.8,3.7824]
[1746636474438,0.13190665,1813.9,1813.8,3.7824]
[1746636474639,0.13190665,1813.9,1813.8,3.0]
[1746636476042,5.64488972,1813.9,1813.8,3.0]
[1746636476245,0.13190665,1813.9,1813.8,3.0]
[1746636476782,5.64488972,1813.9,1813.8,3.0]
[1746636477590,5.64488972,1813.9,1813.8,3.40369526]
[1746636478577,0.13190665,1813.9,1813.8,3.40369526]
[1746636478958,5.51253833,1814.1,1813.8,3.40369526]
[1746636479159,0.12050173,1814.0,1813.8,3.40369526]
[1746636479587,5.63327236,1814.0,1813.8,9.40369526]
[1746636479797,0.12050173,1814.0,1813.8,9.40369526]
[1746636479958,0.12050173,1814.0,1813.9,0.7948]
[1746636480158,11.02376991,1814.3,1813.9,0.7948]
[1746636480388,5.63235813,1814.2,1813.9,6.3076697]
[1746636480665,0.12016927,1814.2,1813.9,6.3076697]
[1746636480873,0.12016927,1814.2,1813.9,0.7948]
[1746636481200,5.5125007,1814.1,1813.9,0.7948]
[1746636481407,5.5128246,1814.0,1813.8,9.40369526]
[1746636481706,5.51298307,1813.9,1813.8,9.40369526]
[1746636482072,5.63262142,1813.9,1813.8,9.40369526]
[1746636482900,0.11963835,1813.9,1813.8,10.20629526]
[1746636483295,0.11963835,1813.9,1813.8,15.71958228]
[1746636483491,0.11963835,1813.9,1813.8,12.32960152]
[1746636483694,0.8165,1814.3,1814.1,3.0]
[1746636483695,6.32838258,1814.3,1814.1,3.0]
[1746636483907,5.51188258,1814.3,1814.1,3.0]
[1746636484691,5.51188258,1814.3,1814.1,3.7763]
[1746636485093,5.51188258,1814.3,1813.9,5.51275939]
[1746636485094,5.51231029,1814.2,1813.9,3.8257]
[1746636485302,5.51248033,1814.1,1813.9,3.8257]
[1746636485723,5.51231029,1814.2,1814.1,3.0]
[1746636485890,5.5119709,1814.3,1814.1,3.0]
[1746636486829,5.51207143,1814.2,1814.1,3.0]
[1746636487525,5.5119709,1814.3,1814.1,3.0]
[1746636487825,5.51190421,1814.3,1814.1,3.0]
[1746636487984,5.787,1814.4,1814.2,6.0]
[1746636488187,5.787,1814.4,1814.2,12.3151547]
[1746636488418,11.02215826,1814.6,1814.2,12.3151547]
[1746636488622,5.51100897,1814.6,1814.4,3.0]
[1746636488824,5.51101471,1814.6,1814.4,3.0]
[1746636489195,5.51098601,1814.6,1814.4,3.0]
[1746636489531,5.51116009,1814.5,1814.4,3.0]
[1746636492094,5.51098601,1814.6,1814.4,3.0]
[1746636492530,5.51116009,1814.5,1814.4,3.0]
[1746636494532,6.31826009,1814.5,1814.4,3.0]
[1746636496537,6.44250624,1814.5,1814.4,3.0]
[1746636498451,5.51176762,1814.3,1814.2,6.0]
[1746636498633,5.51257078,1814.1,1814.0,3.0]
[1746636498827,5.51257078,1814.1,1814.0,9.0]
[1746636499027,5.6350396,1814.1,1814.0,9.0]
[1746636500042,5.6348441,1814.1,1814.0,9.0]
[1746636500217,5.6348441,1814.1,1814.0,6.0]
[1746636500553,5.6348441,1814.1,1814.0,9.0]
[1746636502031,5.6348441,1814.1,1814.0,6.0]
[1746636502210,6.4165441,1814.1,1814.0,6.0]
[1746636502545,5.51298307,1813.9,1813.8,0.40369526]
[1746636502757,5.51328702,1813.8,1813.4,6.0]
[1746636503051,5.51419906,1813.5,1813.4,9.67922]
[1746636503221,5.51419906,1813.5,1813.4,6.67922]
[1746636503540,5.63325891,1813.5,1813.4,9.67922]
[1746636504238,5.63325891,1813.5,1813.4,6.0]
[1746636504639,5.5151114,1813.2,1813.1,6.7922]
[1746636504853,5.5151114,1813.2,1813.1,6.0]
[1746636505157,5.63198305,1813.2,1813.1,9.0]
[1746636505302,5.63198305,1813.2,1813.1,9.40787673]
[1746636505705,5.63198305,1813.2,1813.1,6.40787673]
[1746636506507,5.63198305,1813.2,1813.1,9.40787673]
[1746636506842,5.63198305,1813.2,1813.1,6.40787673]
[1746636507145,5.63198305,1813.2,1813.1,0.40787673]
[1746636507313,5.5157198,1813.0,1812.9,3.0]
[1746636507744,5.5157198,1813.0,1812.9,3.4194678]
[1746636507925,5.6263568,1813.0,1812.9,3.4194678]
[1746636508240,6.3811568,1813.0,1812.9,0.4194678]
[1746636508406,5.51602404,1812.9,1812.8,6.71236192]
[1746636508611,5.62643237,1812.9,1812.8,3.71236192]
[1746636509972,5.51663264,1812.7,1812.6,9.0]
[1746636510172,0.7914,1812.7,1812.0,0.59697244]
[1746636510383,0.7914,1812.7,1811.9,3.71236192]
[1746636510384,6.30961478,1812.2,1811.9,3.71236192]
[1746636510680,5.881956,1812.1,1811.9,3.71236192]
[1746636510840,11.40041524,1812.1,1812.0,3.0]
[1746636511875,0.105956,1812.1,1812.0,15.71421017]
[1746636512269,5.776,1812.5,1812.4,3.7529]
[1746636512436,5.776,1812.5,1812.4,9.7529]
[1746636512637,5.88134845,1812.5,1812.4,9.7529]
[1746636512839,0.10534845,1812.5,1812.4,9.7529]
[1746636513080,5.776,1812.6,1812.4,11.33103187]
[1746636513378,0.10611571,1812.5,1812.4,11.33103187]
[1746636513581,0.10611571,1812.5,1812.4,9.7529]
[1746636514281,0.10611571,1812.5,1812.4,9.0]
[1746636514282,5.62335708,1812.5,1812.4,9.0]
[1746636514577,0.10611571,1812.5,1812.4,9.0]
[1746636515572,5.62335708,1812.5,1812.4,9.0]
[1746636515778,5.62335708,1812.5,1812.3,3.0]
[1746636516171,6.45363172,1812.5,1812.3,3.0]
[1746636516364,5.51754579,1812.4,1812.3,3.0]
[1746636516884,5.6233273,1812.4,1812.3,3.0]
[1746636517379,0.10578151,1812.4,1812.3,3.0]
[1746636517783,5.6233273,1812.4,1812.3,3.0]
[1746636518651,5.51754579,1812.4,1812.2,3.0]
[1746636519275,6.34754507,1812.5,1812.2,3.0]
[1746636519793,5.776,1812.6,1812.2,4.45184485]
[1746636520089,11.29297736,1812.6,1812.3,3.7756]
[1746636520387,16.81017889,1812.6,1812.3,3.7756]
[1746636520598,5.51724787,1812.5,1812.3,3.7756]
[1746636520882,11.29624787,1812.5,1812.3,0.7756]
[1746636521854,5.779,1812.5,1812.3,0.7756]
[1746636522356,11.29626156,1812.5,1812.2,4.45184485]
[1746636522556,11.29626156,1812.5,1812.2,9.96996927]
[1746636522887,5.779,1812.5,1812.2,9.96996927]
[1746636523958,5.779,1812.5,1812.4,0.7759]
[1746636524599,5.779,1812.5,1812.4,6.7759]
[1746636525764,5.779,1812.5,1812.4,6.0]
[1746636527600,11.29624137,1812.5,1812.4,6.0]
[1746636528102,5.779,1812.5,1812.4,6.0]
[1746636528322,11.29624137,1812.5,1812.4,6.0]
[1746636528475,5.779,1812.5,1812.4,6.0]
[1746636528873,11.29624137,1812.5,1812.4,6.0]
[1746636533611,11.29624137,1812.5,1812.3,6.0]
[1746636536110,5.779,1812.5,1812.3,6.0]
[1746636536501,11.29629817,1812.5,1812.3,6.0]
[1746636538208,12.06879817,1812.5,1812.3,9.0]
[1746636539581,11.29629817,1812.5,1812.3,3.0]
[1746636539775,5.779,1812.5,1812.3,6.42682621]
[1746636540112,11.29634093,1812.5,1812.3,6.42682621]
[1746636542318,5.779,1812.5,1812.3,6.42682621]
[1746636542623,11.2963423,1812.5,1812.3,6.42682621]
[1746636543514,5.779,1812.5,1812.3,13.81439167]
[1746636543721,5.779,1812.5,1812.4,5.51754579]
[1746636543893,5.779,1812.5,1812.3,13.81439167]
[1746636545515,11.29625875,1812.5,1812.3,8.29656801]
[1746636545710,11.29625875,1812.5,1812.3,12.42682621]
[1746636545888,5.779,1812.5,1812.3,12.42682621]
[1746636546217,5.779,1812.5,1812.3,17.9446186]
[1746636547419,5.778,1812.6,1812.4,8.51754579]
[1746636547607,5.778,1812.6,1812.5,3.42682621]
[1746636549717,25.39281197,1813.0,1812.6,3.0]
[1746636549928,25.39281197,1813.0,1812.9,3.42682621]
[1746636550131,19.877,1813.0,1812.9,6.42682621]
[1746636550286,6.26593241,1813.2,1812.9,12.72781709]
[1746636550287,5.778,1813.2,1812.9,12.72781709]
[1746636550493,5.778,1813.2,1813.1,6.42682621]
[1746636550726,11.2931114,1813.2,1813.1,3.0]
[1746636551490,5.778,1813.2,1813.1,6.42682621]
[1746636552214,5.51464994,1813.4,1813.1,6.42682621]
[1746636552215,6.2926169,1813.5,1813.2,3.0]
[1746636552385,5.777,1813.3,1813.2,6.42682621]
[1746636553495,5.777,1813.3,1813.2,6.84296378]
[1746636553803,5.777,1813.3,1813.2,3.41613757]
[1746636553989,5.777,1813.5,1813.3,0.8289]
[1746636554391,5.51480725,1813.3,1813.2,0.41613757]
[1746636554592,11.02990729,1813.3,1813.1,3.0]
[1746636554924,5.51480725,1813.3,1813.1,3.0]
[1746636555126,5.5151114,1813.2,1813.1,3.0]
[1746636555827,6.2804114,1813.2,1813.1,3.0]
[1746636556421,6.2804114,1813.2,1813.1,3.41039297]
[1746636557826,6.2804114,1813.2,1813.1,0.41039297]
[1746636558014,5.51560317,1813.1,1812.9,3.0]
[1746636558195,5.777,1813.1,1812.9,3.0]
[1746636558395,5.777,1813.1,1812.9,5.05416086]
[1746636558921,11.29248064,1813.1,1812.9,5.05416086]
[1746636559122,11.29248064,1813.1,1812.9,3.0]
[1746636560322,5.5157198,1813.0,1812.9,3.0]
[1746636560913,11.29248064,1813.1,1812.9,3.0]
[1746636561324,5.51524087,1813.2,1812.9,3.0]
[1746636561490,5.755,1813.1,1812.9,3.41995528]
[1746636561697,5.755,1813.1,1812.9,5.51610658]
[1746636561899,11.27052365,1813.1,1812.9,3.41995528]
[1746636563126,5.5157198,1813.0,1812.9,3.41995528]
[1746636563327,5.5157198,1813.0,1812.9,0.41995528]
[1746636563501,5.51602404,1812.9,1812.8,6.0]
[1746636563706,5.51602404,1812.9,1812.8,9.0]
[1746636565733,5.51602404,1812.9,1812.8,9.40720909]
[1746636566636,5.51602404,1812.9,1812.8,3.40720909]
[1746636570032,5.755,1813.1,1812.9,3.7524]
[1746636570439,11.27053787,1813.1,1812.9,3.7524]
[1746636571407,11.27053787,1813.1,1812.8,6.77327115]
[1746636571408,5.51602404,1812.9,1812.8,0.40720909]
[1746636571620,5.51602404,1812.9,1812.7,3.7808]
[1746636571818,5.5157198,1813.0,1812.7,3.7808]
[1746636571819,5.5157198,1813.0,1812.7,17.4296267]
[1746636572645,5.5157198,1813.0,1812.7,11.9131021]
[1746636573068,5.51616253,1812.9,1812.7,9.7808]
[1746636573269,11.03245072,1812.9,1812.7,9.42244714]
[1746636573562,11.03254286,1812.9,1812.7,9.42244714]
[1746636573723,11.03254501,1812.9,1812.7,9.42244714]
[1746636573923,5.5162586,1812.9,1812.7,9.42244714]
[1746636574535,11.03251738,1812.9,1812.7,9.42244714]
[1746636574863,5.51632833,1812.8,1812.7,9.42244714]
[1746636575749,5.51632833,1812.8,1812.7,3.42244714]
[1746636577963,5.51632833,1812.8,1812.7,3.84781597]
[1746636579871,5.755,1813.1,1812.7,3.84781597]
[1746636580023,5.755,1813.1,1813.0,4.22376883]